[Event "*** Titled Tuesday Blitz"]
[Site "Chess.com"]
[Date "2020.05.12"]
[Round "1"]
[White "gui_borba"]
[Black "Stewie_89"]
[Result "1-0"]
[WhiteElo "2341"]
[BlackElo "2629"]
[TimeControl "180+1"]
[EndTime "10:04:37 PDT"]
[Termination "gui_borba won by resignation"]

1. d4 {[%clk 0:03:00.9]} 1... d5 {[%clk 0:02:59.1]} 2. Bf4 {[%clk 0:03:01.3]}
2... Nf6 {[%clk 0:02:58.4]} 3. e3 {[%clk 0:03:01.5]} 3... c5 {[%clk 0:02:55.7]}
4. Nf3 {[%clk 0:03:01.3]} 4... Nc6 {[%clk 0:02:55.6]} 5. c3 {[%clk 0:03:01.6]}
5... Qb6 {[%clk 0:02:55]} 6. Qb3 {[%clk 0:03:00.3]} 6... c4 {[%clk 0:02:53.4]}
7. Qc2 {[%clk 0:03:00.6]} 7... g6 {[%clk 0:02:51.7]} 8. Be2 {[%clk 0:02:59.5]}
8... Bf5 {[%clk 0:02:51.3]} 9. Qc1 {[%clk 0:02:59.8]} 9... Bg7 {[%clk
0:02:49.4]} 10. Nbd2 {[%clk 0:02:58.2]} 10... O-O {[%clk 0:02:38.3]} 11. O-O
{[%clk 0:02:58.5]} 11... Qd8 {[%clk 0:02:37.8]} 12. h3 {[%clk 0:02:57.8]} 12...
b5 {[%clk 0:02:29.3]} 13. b3 {[%clk 0:02:57.8]} 13... Re8 {[%clk 0:02:08.6]} 14.
a4 {[%clk 0:02:56]} 14... a6 {[%clk 0:02:08.4]} 15. Ne5 {[%clk 0:02:55.9]} 15...
Nxe5 {[%clk 0:02:06.3]} 16. Bxe5 {[%clk 0:02:56.8]} 16... Ne4 {[%clk 0:02:00.5]}
17. Bxg7 {[%clk 0:02:52.3]} 17... Kxg7 {[%clk 0:02:00.3]} 18. Nxe4 {[%clk
0:02:52.6]} 18... Bxe4 {[%clk 0:02:00.3]} 19. Qb2 {[%clk 0:02:52.4]} 19... Rb8
{[%clk 0:01:58.3]} 20. axb5 {[%clk 0:02:51.9]} 20... axb5 {[%clk 0:01:57.6]} 21.
b4 {[%clk 0:02:50.3]} 21... Ra8 {[%clk 0:01:41.6]} 22. Rxa8 {[%clk 0:02:49.9]}
22... Qxa8 {[%clk 0:01:41]} 23. Ra1 {[%clk 0:02:50.8]} 23... Qb7 {[%clk
0:01:41.5]} 24. Ra5 {[%clk 0:02:50.9]} 24... e5 {[%clk 0:01:38.8]} 25. dxe5
{[%clk 0:02:48.7]} 25... Rxe5 {[%clk 0:01:38.3]} 26. Qd2 {[%clk 0:02:48.8]}
26... Re7 {[%clk 0:01:28.5]} 27. Qd4+ {[%clk 0:02:48]} 27... f6 {[%clk
0:01:28.7]} 28. Bf1 {[%clk 0:02:35.4]} 28... Qd7 {[%clk 0:01:27.1]} 29. Qc5
{[%clk 0:02:33.2]} 29... Bd3 {[%clk 0:01:19.7]} 30. Qxb5 {[%clk 0:02:29.1]}
30... Qf5 {[%clk 0:01:17.2]} 31. Qxd5 {[%clk 0:02:26.6]} 31... Re5 {[%clk
0:01:12.2]} 32. Ra7+ {[%clk 0:02:22.2]} 32... Kh6 {[%clk 0:01:11.8]} 33. Qf7
{[%clk 0:02:12.6]} 33... Bxf1 {[%clk 0:01:03.9]} 34. Qxh7+ {[%clk 0:02:01]}
34... Kg5 {[%clk 0:01:03.6]} 35. f4+ {[%clk 0:02:01.2]} 1-0

[Event "*** Titled Tuesday Blitz"]
[Site "Chess.com"]
[Date "2020.05.12"]
[Round "1"]
[White "Sanan_Sjugirov"]
[Black "pedroholly22"]
[Result "1-0"]
[WhiteElo "2926"]
[BlackElo "2455"]
[TimeControl "180+1"]
[EndTime "10:04:38 PDT"]
[Termination "Sanan_Sjugirov won by resignation"]

1. e4 {[%clk 0:03:00.9]} 1... c5 {[%clk 0:02:39.3]} 2. Nf3 {[%clk 0:03:00.1]}
2... d6 {[%clk 0:02:38.9]} 3. Bb5+ {[%clk 0:02:59.7]} 3... Bd7 {[%clk
0:02:38.6]} 4. Bxd7+ {[%clk 0:02:59.5]} 4... Nxd7 {[%clk 0:02:39.5]} 5. c3
{[%clk 0:02:59.3]} 5... Ngf6 {[%clk 0:02:39.8]} 6. Qe2 {[%clk 0:02:59.5]} 6...
Ne5 {[%clk 0:02:39.2]} 7. d4 {[%clk 0:02:33.8]} 7... Ned7 {[%clk 0:02:40.1]} 8.
e5 {[%clk 0:02:28.6]} 8... dxe5 {[%clk 0:02:37.9]} 9. dxe5 {[%clk 0:02:29.5]}
9... Nd5 {[%clk 0:02:37.3]} 10. e6 {[%clk 0:02:27.8]} 10... fxe6 {[%clk
0:02:37.1]} 11. Ng5 {[%clk 0:02:23.2]} 11... N7f6 {[%clk 0:02:11.8]} 12. O-O
{[%clk 0:02:15.8]} 12... Qd7 {[%clk 0:01:59.9]} 13. c4 {[%clk 0:02:08.7]} 13...
Nb4 {[%clk 0:01:53.2]} 14. Rd1 {[%clk 0:02:08]} 14... Qc6 {[%clk 0:01:42.7]} 15.
Nc3 {[%clk 0:02:02.8]} 15... h6 {[%clk 0:01:30.7]} 16. Nxe6 {[%clk 0:02:01.8]}
16... Kf7 {[%clk 0:01:30.5]} 17. Re1 {[%clk 0:01:52.7]} 17... g5 {[%clk
0:01:23.8]} 18. a3 {[%clk 0:01:48.9]} 18... Na6 {[%clk 0:01:22.2]} 19. Nd5
{[%clk 0:01:45.8]} 19... Re8 {[%clk 0:01:19.3]} 20. Bd2 {[%clk 0:01:42.8]} 20...
Nxd5 {[%clk 0:01:14.3]} 21. cxd5 {[%clk 0:01:41.3]} 21... Qxd5 {[%clk
0:01:14.2]} 22. Qh5+ {[%clk 0:01:40.6]} 22... Kg8 {[%clk 0:01:11]} 23. Qg6+
{[%clk 0:01:40.1]} 1-0

[Event "*** Titled Tuesday Blitz"]
[Site "Chess.com"]
[Date "2020.05.12"]
[Round "1"]
[White "ElGasanov"]
[Black "GuerrieroFromLevant"]
[Result "1-0"]
[WhiteElo "2724"]
[BlackElo "2381"]
[TimeControl "180+1"]
[EndTime "10:04:41 PDT"]
[Termination "ElGasanov won by resignation"]

1. d4 {[%clk 0:03:00.3]} 1... d5 {[%clk 0:02:59.8]} 2. c4 {[%clk 0:02:56.7]}
2... e6 {[%clk 0:02:59.7]} 3. Nf3 {[%clk 0:02:55.5]} 3... c5 {[%clk 0:02:59.4]}
4. e3 {[%clk 0:02:54.8]} 4... dxc4 {[%clk 0:02:59]} 5. Bxc4 {[%clk 0:02:53.9]}
5... Nf6 {[%clk 0:02:59.6]} 6. O-O {[%clk 0:02:53]} 6... a6 {[%clk 0:02:57.8]}
7. b3 {[%clk 0:02:52.9]} 7... b5 {[%clk 0:02:56]} 8. Be2 {[%clk 0:02:52.2]} 8...
Bb7 {[%clk 0:02:54.6]} 9. Bb2 {[%clk 0:02:52.1]} 9... Nbd7 {[%clk 0:02:52.1]}
10. a4 {[%clk 0:02:50.4]} 10... b4 {[%clk 0:02:50.7]} 11. Nbd2 {[%clk
0:02:50.7]} 11... Be7 {[%clk 0:02:48.3]} 12. Nc4 {[%clk 0:02:50]} 12... O-O
{[%clk 0:02:46.6]} 13. Rc1 {[%clk 0:02:48.8]} 13... Rc8 {[%clk 0:02:40.6]} 14.
h3 {[%clk 0:02:43.2]} 14... Ne4 {[%clk 0:02:33.4]} 15. Qc2 {[%clk 0:02:35.2]}
15... Ndf6 {[%clk 0:02:27]} 16. Rfd1 {[%clk 0:02:31.9]} 16... Bd5 {[%clk
0:02:24.6]} 17. Nfe5 {[%clk 0:02:20]} 17... cxd4 {[%clk 0:02:11.2]} 18. Bxd4
{[%clk 0:02:18.5]} 18... Bc5 {[%clk 0:02:08.4]} 19. f3 {[%clk 0:02:11.2]} 19...
Bxd4 {[%clk 0:02:06.2]} 20. Rxd4 {[%clk 0:02:09.7]} 20... Nc3 {[%clk 0:02:06.2]}
21. e4 {[%clk 0:02:04.3]} 21... Bxc4 {[%clk 0:01:31.7]} 22. Rxd8 {[%clk
0:01:58.5]} 22... Bxe2 {[%clk 0:01:20.5]} 23. Rxf8+ {[%clk 0:01:49.8]} 23...
Kxf8 {[%clk 0:01:18.6]} 24. Qd2 {[%clk 0:01:37.1]} 24... Ke7 {[%clk 0:01:09.5]}
25. Qd4 {[%clk 0:01:36.2]} 25... Rb8 {[%clk 0:00:57.2]} 26. Qa7+ {[%clk
0:01:34]} 1-0

[Event "*** Titled Tuesday Blitz"]
[Site "Chess.com"]
[Date "2020.05.12"]
[Round "1"]
[White "Firouzja2003"]
[Black "KaterinaMiroshnik"]
[Result "1-0"]
[WhiteElo "3161"]
[BlackElo "2465"]
[TimeControl "180+1"]
[EndTime "10:04:45 PDT"]
[Termination "Firouzja2003 won by resignation"]

1. e4 {[%clk 0:03:00.7]} 1... e6 {[%clk 0:02:59.3]} 2. d4 {[%clk 0:02:59.6]}
2... d5 {[%clk 0:02:59.7]} 3. Nc3 {[%clk 0:02:59.8]} 3... Nf6 {[%clk 0:02:59.2]}
4. e5 {[%clk 0:02:56.6]} 4... Nfd7 {[%clk 0:02:59.1]} 5. f4 {[%clk 0:02:56.2]}
5... c5 {[%clk 0:02:59.4]} 6. Nf3 {[%clk 0:02:56.6]} 6... Nc6 {[%clk 0:02:59.6]}
7. Be3 {[%clk 0:02:55.3]} 7... a6 {[%clk 0:02:58.8]} 8. Ne2 {[%clk 0:02:55.1]}
8... b5 {[%clk 0:02:58]} 9. c3 {[%clk 0:02:54]} 9... Qb6 {[%clk 0:02:56.5]} 10.
Ng3 {[%clk 0:02:41.1]} 10... g6 {[%clk 0:02:44]} 11. Be2 {[%clk 0:02:36.6]}
11... h5 {[%clk 0:02:40.5]} 12. O-O {[%clk 0:02:36]} 12... Be7 {[%clk
0:02:38.5]} 13. a4 {[%clk 0:02:29.2]} 13... b4 {[%clk 0:02:26.7]} 14. Kh1 {[%clk
0:02:22]} 14... h4 {[%clk 0:02:21.8]} 15. dxc5 {[%clk 0:02:01.1]} 15... Bxc5
{[%clk 0:02:17.6]} 16. a5 {[%clk 0:01:56.2]} 16... Qa7 {[%clk 0:02:09.5]} 17.
Bxc5 {[%clk 0:01:46.7]} 17... Nxc5 {[%clk 0:02:02.4]} 18. cxb4 {[%clk
0:01:24.6]} 18... Nxb4 {[%clk 0:02:03.3]} 19. Rc1 {[%clk 0:01:24.5]} 19... hxg3
{[%clk 0:01:23.7]} 20. Qd4 {[%clk 0:01:23]} 20... Ne4 {[%clk 0:01:23.4]} 21.
Qxa7 {[%clk 0:01:05.9]} 21... Rxa7 {[%clk 0:01:20.7]} 22. Rxc8+ {[%clk
0:01:05.7]} 22... Kd7 {[%clk 0:01:20.4]} 23. Rxh8 {[%clk 0:01:06]} 1-0

[Event "*** Titled Tuesday Blitz"]
[Site "Chess.com"]
[Date "2020.05.12"]
[Round "1"]
[White "DLR7"]
[Black "ljuks68"]
[Result "1-0"]
[WhiteElo "2723"]
[BlackElo "2378"]
[TimeControl "180+1"]
[EndTime "10:04:49 PDT"]
[Termination "DLR7 won by checkmate"]

1. e4 {[%clk 0:02:55.3]} 1... e6 {[%clk 0:02:57.7]} 2. d4 {[%clk 0:02:53.3]}
2... d5 {[%clk 0:02:57.8]} 3. Bd3 {[%clk 0:02:51.4]} 3... dxe4 {[%clk
0:02:57.3]} 4. Bxe4 {[%clk 0:02:50.2]} 4... Nf6 {[%clk 0:02:57.9]} 5. Bf3 {[%clk
0:02:48.9]} 5... Nbd7 {[%clk 0:02:58.1]} 6. Ne2 {[%clk 0:02:47.2]} 6... Bd6
{[%clk 0:02:58.5]} 7. O-O {[%clk 0:02:35.2]} 7... e5 {[%clk 0:02:58.6]} 8. Ng3
{[%clk 0:02:32.5]} 8... O-O {[%clk 0:02:54.1]} 9. Nf5 {[%clk 0:02:30]} 9... e4
{[%clk 0:02:52.1]} 10. Be2 {[%clk 0:02:25.8]} 10... Nb6 {[%clk 0:02:48.8]} 11.
Nxd6 {[%clk 0:02:23.5]} 11... cxd6 {[%clk 0:02:48.7]} 12. c4 {[%clk 0:02:18.3]}
12... d5 {[%clk 0:02:48]} 13. c5 {[%clk 0:02:16.5]} 13... Nbd7 {[%clk
0:02:47.1]} 14. Nc3 {[%clk 0:02:15.9]} 14... Re8 {[%clk 0:02:45.8]} 15. Bf4
{[%clk 0:02:09]} 15... Nf8 {[%clk 0:02:45.1]} 16. Nb5 {[%clk 0:02:07]} 16... Ne6
{[%clk 0:02:39.9]} 17. Be5 {[%clk 0:02:04.6]} 17... Nd7 {[%clk 0:02:33.9]} 18.
Bd6 {[%clk 0:02:02.6]} 18... a6 {[%clk 0:02:32.5]} 19. Nc3 {[%clk 0:01:59.9]}
19... Nf6 {[%clk 0:02:32.2]} 20. f3 {[%clk 0:01:56.1]} 20... Ng5 {[%clk
0:02:04.6]} 21. f4 {[%clk 0:01:48.6]} 21... Ne6 {[%clk 0:01:59.9]} 22. f5 {[%clk
0:01:48.8]} 22... Nf8 {[%clk 0:01:53.9]} 23. Qb3 {[%clk 0:01:44.7]} 23... e3
{[%clk 0:01:35]} 24. Nxd5 {[%clk 0:01:41.1]} 24... Ne4 {[%clk 0:01:35.3]} 25.
Nc7 {[%clk 0:01:37.1]} 25... Nd2 {[%clk 0:01:29.2]} 26. Qd5 {[%clk 0:01:35.4]}
26... Nxf1 {[%clk 0:01:28.6]} 27. Rxf1 {[%clk 0:01:32.7]} 27... Bd7 {[%clk
0:01:24.8]} 28. Nxa8 {[%clk 0:01:30.3]} 28... Qxa8 {[%clk 0:01:24.4]} 29. Bc4
{[%clk 0:01:23]} 29... Qc8 {[%clk 0:01:09.7]} 30. Qxf7+ {[%clk 0:01:21.3]} 30...
Kh8 {[%clk 0:01:09.2]} 31. Qg8# {[%clk 0:01:22.2]} 1-0

[Event "*** Titled Tuesday Blitz"]
[Site "Chess.com"]
[Date "2020.05.12"]
[Round "1"]
[White "Shield12"]
[Black "dbrankovic68"]
[Result "1-0"]
[WhiteElo "2798"]
[BlackElo "2418"]
[TimeControl "180+1"]
[EndTime "10:04:57 PDT"]
[Termination "Shield12 won by resignation"]

1. d4 {[%clk 0:03:00.9]} 1... Nf6 {[%clk 0:02:59.6]} 2. Nf3 {[%clk 0:03:00.5]}
2... g6 {[%clk 0:02:59.4]} 3. Nc3 {[%clk 0:02:56.8]} 3... d5 {[%clk 0:02:55.7]}
4. Bf4 {[%clk 0:02:56.2]} 4... a6 {[%clk 0:02:53.1]} 5. e3 {[%clk 0:02:55.3]}
5... Bg7 {[%clk 0:02:53]} 6. Bd3 {[%clk 0:02:51.2]} 6... O-O {[%clk 0:02:50.8]}
7. h3 {[%clk 0:02:50.9]} 7... c5 {[%clk 0:02:46.3]} 8. O-O {[%clk 0:02:47.1]}
8... c4 {[%clk 0:02:40.4]} 9. Be2 {[%clk 0:02:46.6]} 9... b5 {[%clk 0:02:39.7]}
10. Ne5 {[%clk 0:02:46.4]} 10... Bb7 {[%clk 0:02:33.4]} 11. Bf3 {[%clk
0:02:45.8]} 11... Nbd7 {[%clk 0:02:08.4]} 12. b3 {[%clk 0:02:44.1]} 12... Nxe5
{[%clk 0:01:47.9]} 13. Bxe5 {[%clk 0:02:42.9]} 13... Ne4 {[%clk 0:01:43.9]} 14.
Bxe4 {[%clk 0:02:39.8]} 14... dxe4 {[%clk 0:01:41.5]} 15. Bxg7 {[%clk
0:02:39.3]} 15... Kxg7 {[%clk 0:01:41.1]} 16. bxc4 {[%clk 0:02:39.2]} 16... bxc4
{[%clk 0:01:40.9]} 17. Rb1 {[%clk 0:02:38.1]} 17... Rb8 {[%clk 0:01:33.7]} 18.
Rb4 {[%clk 0:02:32.3]} 18... Qc7 {[%clk 0:01:29]} 19. Qe2 {[%clk 0:02:30.2]}
19... Rfc8 {[%clk 0:01:09.8]} 20. Rfb1 {[%clk 0:02:28.1]} 20... a5 {[%clk
0:01:05.3]} 21. Rb6 {[%clk 0:02:27.8]} 21... f5 {[%clk 0:00:53.8]} 22. Qd2
{[%clk 0:02:19.3]} 22... Bc6 {[%clk 0:00:49.7]} 23. d5 {[%clk 0:02:09.9]} 23...
Rxb6 {[%clk 0:00:44.7]} 24. Qd4+ {[%clk 0:02:09.3]} 24... Kg8 {[%clk 0:00:40.9]}
25. Rxb6 {[%clk 0:02:05.2]} 25... Be8 {[%clk 0:00:40.4]} 26. d6 {[%clk
0:02:00.6]} 26... exd6 {[%clk 0:00:39.3]} 27. Nd5 {[%clk 0:01:59.9]} 27... Qc5
{[%clk 0:00:37.1]} 28. Ne7+ {[%clk 0:01:58]} 28... Kf7 {[%clk 0:00:35.8]} 29.
Nxc8 {[%clk 0:01:56.8]} 29... Qxc8 {[%clk 0:00:35.1]} 30. Rxd6 {[%clk
0:01:54.9]} 1-0

[Event "*** Titled Tuesday Blitz"]
[Site "Chess.com"]
[Date "2020.05.12"]
[Round "1"]
[White "Baronessa08"]
[Black "HomayoonTofighi"]
[Result "1-0"]
[WhiteElo "2469"]
[BlackElo "2903"]
[TimeControl "180+1"]
[EndTime "10:05:00 PDT"]
[Termination "Baronessa08 won by checkmate"]

1. c4 {[%clk 0:03:00.9]} 1... c5 {[%clk 0:02:59.1]} 2. Nc3 {[%clk 0:02:59.8]}
2... Nc6 {[%clk 0:02:59.6]} 3. g3 {[%clk 0:02:55]} 3... g6 {[%clk 0:02:59.8]} 4.
Bg2 {[%clk 0:02:52.6]} 4... Bg7 {[%clk 0:03:00.7]} 5. d3 {[%clk 0:02:51]} 5...
d6 {[%clk 0:03:01.3]} 6. Qd2 {[%clk 0:02:49.9]} 6... e5 {[%clk 0:03:01.4]} 7. b3
{[%clk 0:02:49.2]} 7... Nge7 {[%clk 0:03:01.8]} 8. Bb2 {[%clk 0:02:49.3]} 8...
O-O {[%clk 0:03:02.5]} 9. e3 {[%clk 0:02:46.5]} 9... Be6 {[%clk 0:03:03]} 10.
Nd5 {[%clk 0:02:44.2]} 10... Rb8 {[%clk 0:03:03]} 11. Ne2 {[%clk 0:02:43]} 11...
b5 {[%clk 0:03:03.2]} 12. O-O {[%clk 0:02:42.2]} 12... f5 {[%clk 0:03:02.6]} 13.
Rad1 {[%clk 0:02:38.5]} 13... Bxd5 {[%clk 0:02:54.9]} 14. cxd5 {[%clk
0:02:38.2]} 14... Nb4 {[%clk 0:02:54.5]} 15. Nc3 {[%clk 0:02:35.8]} 15... Na6
{[%clk 0:02:53.7]} 16. f4 {[%clk 0:02:16.4]} 16... Nc7 {[%clk 0:02:52]} 17. fxe5
{[%clk 0:02:13.5]} 17... Bxe5 {[%clk 0:02:52.9]} 18. d4 {[%clk 0:02:05.8]} 18...
cxd4 {[%clk 0:02:53.8]} 19. exd4 {[%clk 0:02:06.3]} 19... Bg7 {[%clk 0:02:53.5]}
20. Qe3 {[%clk 0:01:54.9]} 20... Re8 {[%clk 0:02:51.5]} 21. Qf2 {[%clk
0:01:42.4]} 21... b4 {[%clk 0:02:51.2]} 22. Ne2 {[%clk 0:01:34.1]} 22... Nexd5
{[%clk 0:02:51.6]} 23. Rc1 {[%clk 0:01:23]} 23... Kh8 {[%clk 0:02:48.2]} 24.
Rfe1 {[%clk 0:01:22.7]} 24... Bh6 {[%clk 0:02:43.4]} 25. Nf4 {[%clk 0:01:19.9]}
25... Nxf4 {[%clk 0:02:39.4]} 26. gxf4 {[%clk 0:01:19.5]} 26... Bg7 {[%clk
0:02:39.6]} 27. d5 {[%clk 0:01:15]} 27... Nb5 {[%clk 0:02:38.7]} 28. Re6 {[%clk
0:01:08.8]} 28... Rxe6 {[%clk 0:02:32.7]} 29. dxe6 {[%clk 0:01:07.8]} 29... Bxb2
{[%clk 0:02:31.7]} 30. Qxb2+ {[%clk 0:01:07.2]} 30... Nc3 {[%clk 0:02:32.6]} 31.
Rxc3 {[%clk 0:01:02.1]} 31... bxc3 {[%clk 0:02:29.8]} 32. Qxc3+ {[%clk
0:01:02.6]} 32... Kg8 {[%clk 0:02:30.2]} 33. e7 {[%clk 0:00:54.3]} 33... Qb6+
{[%clk 0:02:30.3]} 34. Kh1 {[%clk 0:00:52.2]} 34... Kf7 {[%clk 0:02:31.2]} 35.
Bd5+ {[%clk 0:00:49.4]} 35... Ke8 {[%clk 0:02:28.1]} 36. Qf6 {[%clk 0:00:33.6]}
36... Qb5 {[%clk 0:02:26]} 37. Qf7+ {[%clk 0:00:30.4]} 37... Kd7 {[%clk
0:02:25.5]} 38. e8=Q# {[%clk 0:00:30.4]} 1-0

[Event "*** Titled Tuesday Blitz"]
[Site "Chess.com"]
[Date "2020.05.12"]
[Round "1"]
[White "Oglob71"]
[Black "GM-2023"]
[Result "1-0"]
[WhiteElo "2496"]
[BlackElo "2082"]
[TimeControl "180+1"]
[EndTime "10:05:01 PDT"]
[Termination "Oglob71 won on time"]

1. d4 {[%clk 0:03:00.9]} 1... Nf6 {[%clk 0:02:39.8]} 2. Nf3 {[%clk 0:03:00.1]}
2... e6 {[%clk 0:02:31.2]} 3. c4 {[%clk 0:03:00.5]} 3... a6 {[%clk 0:02:29.3]}
4. Nc3 {[%clk 0:02:59.7]} 4... b6 {[%clk 0:02:26.5]} 5. Bg5 {[%clk 0:02:59.3]}
5... Bb7 {[%clk 0:02:26.3]} 6. Qc2 {[%clk 0:02:58.8]} 6... d5 {[%clk 0:02:19.1]}
7. e3 {[%clk 0:02:57.6]} 7... Be7 {[%clk 0:02:17.8]} 8. cxd5 {[%clk 0:02:52.9]}
8... Nxd5 {[%clk 0:02:17]} 9. Bxe7 {[%clk 0:02:53.4]} 9... Qxe7 {[%clk
0:02:17.5]} 10. Nxd5 {[%clk 0:02:53.4]} 10... Bxd5 {[%clk 0:02:18.4]} 11. Bd3
{[%clk 0:02:53.6]} 11... Nd7 {[%clk 0:02:09.2]} 12. O-O {[%clk 0:02:50.7]} 12...
Bxf3 {[%clk 0:02:05.8]} 13. gxf3 {[%clk 0:02:50.5]} 13... c5 {[%clk 0:02:06.3]}
14. Be4 {[%clk 0:02:49.8]} 14... Rd8 {[%clk 0:01:52.5]} 15. Rad1 {[%clk
0:02:44.4]} 15... f5 {[%clk 0:01:27.2]} 16. Bc6 {[%clk 0:02:44.1]} 16... O-O
{[%clk 0:00:54.1]} 17. Bxd7 {[%clk 0:02:43.3]} 17... Rxd7 {[%clk 0:00:55]} 18.
dxc5 {[%clk 0:02:43.4]} 18... Rxd1 {[%clk 0:00:54]} 19. Rxd1 {[%clk 0:02:42.9]}
19... bxc5 {[%clk 0:00:54.6]} 20. f4 {[%clk 0:02:42]} 20... Qh4 {[%clk
0:00:15.7]} 21. f3 {[%clk 0:02:33.2]} 21... Qh3 {[%clk 0:00:03.8]} 22. Qg2
{[%clk 0:02:31.9]} 22... Qxg2+ {[%clk 0:00:03.4]} 23. Kxg2 {[%clk 0:02:32.2]}
23... Rf7 {[%clk 0:00:03.3]} 24. Kf2 {[%clk 0:02:30]} 24... Rc7 {[%clk
0:00:02.6]} 25. Rc1 {[%clk 0:02:29.5]} 25... Kf7 {[%clk 0:00:02.3]} 26. Ke2
{[%clk 0:02:29.2]} 26... Ke7 {[%clk 0:00:02.8]} 27. b3 {[%clk 0:02:29]} 27...
Kd6 {[%clk 0:00:03.1]} 28. Kd3 {[%clk 0:02:29.2]} 28... Kd5 {[%clk 0:00:02.8]}
29. Kc3 {[%clk 0:02:28.7]} 1-0

[Event "*** Titled Tuesday Blitz"]
[Site "Chess.com"]
[Date "2020.05.12"]
[Round "1"]
[White "Grandelicious"]
[Black "Nagimov_Artiom"]
[Result "1-0"]
[WhiteElo "2750"]
[BlackElo "2396"]
[TimeControl "180+1"]
[EndTime "10:05:02 PDT"]
[Termination "Grandelicious won by resignation"]

1. Nf3 {[%clk 0:03:00.9]} 1... d5 {[%clk 0:02:59.8]} 2. g3 {[%clk 0:03:00.6]}
2... c6 {[%clk 0:02:59.7]} 3. Bg2 {[%clk 0:03:00.5]} 3... Bg4 {[%clk 0:03:00.1]}
4. O-O {[%clk 0:02:59.2]} 4... Nd7 {[%clk 0:02:59.9]} 5. c4 {[%clk 0:02:59.6]}
5... e6 {[%clk 0:02:57.8]} 6. d4 {[%clk 0:02:55.2]} 6... Ngf6 {[%clk 0:02:56.4]}
7. h3 {[%clk 0:02:53.1]} 7... Bh5 {[%clk 0:02:54.7]} 8. cxd5 {[%clk 0:02:53]}
8... exd5 {[%clk 0:02:52.7]} 9. Ne5 {[%clk 0:02:49.8]} 9... Bd6 {[%clk
0:02:48.3]} 10. f4 {[%clk 0:02:48.5]} 10... Qb6 {[%clk 0:01:29.1]} 11. g4 {[%clk
0:02:29.3]} 11... Nxe5 {[%clk 0:01:25]} 12. fxe5 {[%clk 0:02:29.4]} 12... Bxe5
{[%clk 0:01:25.3]} 13. e3 {[%clk 0:02:29.8]} 13... Bxg4 {[%clk 0:01:18.4]} 14.
hxg4 {[%clk 0:02:28.3]} 14... Bd6 {[%clk 0:01:18.8]} 15. Nc3 {[%clk 0:02:06.7]}
15... O-O-O {[%clk 0:01:18.3]} 16. g5 {[%clk 0:02:06.8]} 16... Nd7 {[%clk
0:01:09.7]} 17. Rxf7 {[%clk 0:01:56.8]} 17... h6 {[%clk 0:01:09.7]} 18. g6
{[%clk 0:01:53.5]} 18... Rdf8 {[%clk 0:01:01.3]} 19. Bd2 {[%clk 0:01:51.7]}
19... Qd8 {[%clk 0:00:57.1]} 20. Qg4 {[%clk 0:01:48.4]} 20... h5 {[%clk
0:00:49.4]} 21. Qe6 {[%clk 0:01:45.3]} 21... Rxf7 {[%clk 0:00:46.8]} 22. gxf7
{[%clk 0:01:45.7]} 22... Kc7 {[%clk 0:00:39.3]} 23. Nxd5+ {[%clk 0:01:42.6]}
23... cxd5 {[%clk 0:00:36.9]} 24. Rc1+ {[%clk 0:01:43.1]} 24... Nc5 {[%clk
0:00:32.2]} 25. dxc5 {[%clk 0:01:39.5]} 25... Bg3 {[%clk 0:00:32.5]} 26. Ba5+
{[%clk 0:01:39.6]} 1-0

[Event "*** Titled Tuesday Blitz"]
[Site "Chess.com"]
[Date "2020.05.12"]
[Round "1"]
[White "Ginzburg_Yakov"]
[Black "ahmadzada13"]
[Result "0-1"]
[WhiteElo "2389"]
[BlackElo "2742"]
[TimeControl "180+1"]
[EndTime "10:05:05 PDT"]
[Termination "ahmadzada13 won by resignation"]

1. e4 {[%clk 0:03:00.6]} 1... e5 {[%clk 0:02:59.5]} 2. Nf3 {[%clk 0:03:00.5]}
2... Nc6 {[%clk 0:02:59.5]} 3. Bb5 {[%clk 0:03:00.4]} 3... a6 {[%clk 0:02:59]}
4. Bxc6 {[%clk 0:03:00.3]} 4... dxc6 {[%clk 0:02:59.2]} 5. O-O {[%clk
0:03:01.2]} 5... Bg4 {[%clk 0:02:55.2]} 6. h3 {[%clk 0:03:01]} 6... h5 {[%clk
0:02:55]} 7. d3 {[%clk 0:02:56.8]} 7... Qf6 {[%clk 0:02:53.4]} 8. Nbd2 {[%clk
0:02:52.5]} 8... Ne7 {[%clk 0:02:46.2]} 9. c3 {[%clk 0:02:42.6]} 9... O-O-O
{[%clk 0:02:40.2]} 10. Qe2 {[%clk 0:02:24.4]} 10... Ng6 {[%clk 0:02:31.3]} 11.
Qe3 {[%clk 0:02:16.1]} 11... Nf4 {[%clk 0:02:16.7]} 12. d4 {[%clk 0:02:09]}
12... Bxh3 {[%clk 0:02:03.3]} 13. dxe5 {[%clk 0:01:51.7]} 13... Qg6 {[%clk
0:01:58.7]} 14. Nh4 {[%clk 0:01:42.8]} 14... Qg4 {[%clk 0:01:39.4]} 15. Qf3
{[%clk 0:01:01.3]} 15... Qxh4 {[%clk 0:01:23.4]} 16. gxh3 {[%clk 0:00:53.1]}
16... Rd3 {[%clk 0:01:22.2]} 0-1

[Event "*** Titled Tuesday Blitz"]
[Site "Chess.com"]
[Date "2020.05.12"]
[Round "1"]
[White "RovenVogel"]
[Black "MateSchmate"]
[Result "0-1"]
[WhiteElo "2722"]
[BlackElo "2403"]
[TimeControl "180+1"]
[EndTime "10:05:08 PDT"]
[Termination "MateSchmate won by resignation"]

1. Nf3 {[%clk 0:02:55.9]} 1... Nf6 {[%clk 0:02:59.8]} 2. g3 {[%clk 0:02:52.2]}
2... b6 {[%clk 0:02:59.9]} 3. Bg2 {[%clk 0:02:44]} 3... Bb7 {[%clk 0:03:00.8]}
4. O-O {[%clk 0:02:43.2]} 4... c5 {[%clk 0:03:00.8]} 5. c4 {[%clk 0:02:42.5]}
5... e6 {[%clk 0:03:00.8]} 6. Nc3 {[%clk 0:02:36.8]} 6... Be7 {[%clk 0:03:00.4]}
7. d4 {[%clk 0:02:36.2]} 7... cxd4 {[%clk 0:03:00.5]} 8. Qxd4 {[%clk 0:02:37.1]}
8... d6 {[%clk 0:02:57.7]} 9. Rd1 {[%clk 0:02:33.1]} 9... a6 {[%clk 0:02:53.9]}
10. b3 {[%clk 0:02:32.3]} 10... Nbd7 {[%clk 0:02:50.2]} 11. Ba3 {[%clk
0:02:15.7]} 11... Nc5 {[%clk 0:02:49.8]} 12. b4 {[%clk 0:02:06.5]} 12... Ncd7
{[%clk 0:02:49.9]} 13. Ng5 {[%clk 0:01:55.7]} 13... Bxg2 {[%clk 0:02:48.9]} 14.
Kxg2 {[%clk 0:01:56.6]} 14... O-O {[%clk 0:02:31.9]} 15. Nge4 {[%clk 0:01:54.1]}
15... Rc8 {[%clk 0:02:23.1]} 16. Rac1 {[%clk 0:01:42.4]} 16... Ne5 {[%clk
0:02:12.5]} 17. Nxf6+ {[%clk 0:01:40.7]} 17... Bxf6 {[%clk 0:02:11.9]} 18. Ne4
{[%clk 0:01:40.9]} 18... Be7 {[%clk 0:02:01]} 19. b5 {[%clk 0:01:32.1]} 19...
axb5 {[%clk 0:01:57.3]} 20. cxb5 {[%clk 0:01:33]} 20... Rxc1 {[%clk 0:01:47.5]}
21. Bxc1 {[%clk 0:01:29.3]} 21... Qa8 {[%clk 0:01:44.2]} 22. Kg1 {[%clk
0:01:23.5]} 22... Qxa2 {[%clk 0:01:40.4]} 23. Bb2 {[%clk 0:01:06.8]} 23... f5
{[%clk 0:01:21.8]} 24. Ra1 {[%clk 0:00:56.8]} 24... Qc4 {[%clk 0:01:14.8]} 25.
Nxd6 {[%clk 0:00:52.6]} 25... Qxd4 {[%clk 0:01:07.7]} 0-1